fUSD/lending_fUSD_20240421
["ID","MTS","AMOUNT","RATE_DAILY","PERIOD"]
[323129120,1713699040753,-65.7553129,0.00015776,2]
[323129121,1713699040765,-84.2446871,0.00015776,2]
[323129122,1713699040774,-150.0,0.00015776,2]
[323129123,1713699040783,-150.0,0.00015783,2]
[323129124,1713699040793,-150.0,0.00015792,2]
[323129125,1713699040802,-150.0,0.00015798,2]
[323129126,1713699040811,-111.01044491,0.000158,2]
[323129127,1713699040849,-38.98955509,0.000158,2]
[323129128,1713699040859,-150.0,0.00015801,2]
[323129129,1713699040868,-150.0,0.00015807,2]
[323129130,1713699040878,-53.71514491,0.00015816,2]
[323129131,1713699040889,-96.28485509,0.00015816,2]
[323129132,1713699040899,-150.0,0.00015819,2]
[323129133,1713699040909,-150.0,0.00015846,2]
[323129134,1713699040918,-150.0,0.00015851,2]
[323129135,1713699040927,-150.0,0.00015855,2]
[323129136,1713699040936,-150.0,0.00015863,2]
[323129137,1713699040946,-150.0,0.00015865,2]
[323129138,1713699040955,-150.0,0.0001587,2]
[323129139,1713699040965,-150.0,0.00015872,2]
[323129140,1713699040974,-150.0,0.00015882,2]
[323129141,1713699040983,-150.0,0.00015889,2]
[323129142,1713699040993,-150.0,0.00015893,2]
[323129143,1713699041003,-150.0,0.00015895,2]
[323129144,1713699041012,-150.0,0.00015898,2]
[323129145,1713699041022,-150.0,0.00015901,2]
[323129146,1713699041032,-150.0,0.00015904,2]
[323129147,1713699041041,-150.0,0.00015905,2]
[323129148,1713699041051,-150.0,0.00015907,2]
[323129149,1713699041061,-150.0,0.00015908,2]
[323129150,1713699041070,-150.0,0.00015915,2]
[323129151,1713699041079,-150.0,0.0001592,2]
[323129152,1713699041089,-150.0,0.00015921,2]
[323129153,1713699041098,-150.0,0.00015924,2]
[323129154,1713699041108,-150.0,0.00015929,2]
[323129155,1713699041117,-150.0,0.00015932,2]
[323129156,1713699041127,-150.0,0.00015932,2]
[323129157,1713699041136,-150.0,0.00015937,2]
[323129158,1713699041146,-150.0,0.00015941,2]
[323129159,1713699041156,-150.0,0.00015944,2]
[323129160,1713699041166,-150.0,0.00015946,2]
[323129161,1713699041176,-150.0,0.00015949,2]
[323129162,1713699041185,-88.31273953,0.00015951,2]
[323129163,1713699041196,-150.0,0.00015952,2]
[323129164,1713699041205,-294.22119381,0.00015953,2]
[323129170,1713699041956,-150.0,0.00015709,2]
[323129172,1713699041968,-150.0,0.0001572,2]
[323129174,1713699041979,-150.0,0.00015721,2]
[323129176,1713699041989,-150.0,0.00015726,2]
[323129178,1713699041999,-48.22522683,0.00015727,2]
[323129180,1713699042011,-101.77477317,0.00015727,2]
[323129183,1713699042021,-150.0,0.00015735,2]
[323129185,1713699042031,-150.0,0.00015741,2]
[323129186,1713699042040,-150.0,0.00015742,2]
[323129188,1713699042050,-150.0,0.00015747,2]
[323129191,1713699042060,-150.0,0.00015747,2]
[323129193,1713699042070,-150.0,0.00015748,2]
[323129195,1713699042079,-150.0,0.00015756,2]
[323129197,1713699042089,-150.0,0.00015766,2]
[323129199,1713699042099,-150.0,0.00015786,2]
[323129200,1713699042110,-150.0,0.00015787,2]
[323129202,1713699042120,-150.0,0.00015787,2]
[323129205,1713699042130,-150.0,0.00015794,2]
[323129206,1713699042140,-150.0,0.00015797,2]
[323129209,1713699042150,-150.0,0.00015802,2]
[323129211,1713699042161,-150.0,0.00015804,2]
[323129213,1713699042171,-150.0,0.00015808,2]
[323129215,1713699042181,-150.0,0.00015828,2]
[323129217,1713699042191,-150.0,0.00015835,2]
[323129219,1713699042201,-150.0,0.0001584,2]
[323129221,1713699042210,-150.0,0.0001584,2]
[323129222,1713699042222,-150.0,0.00015842,2]
[323129225,1713699042232,-150.0,0.00015845,2]
[323129227,1713699042242,-150.0,0.00015848,2]
[323129229,1713699042252,-150.0,0.00015852,2]
[323129231,1713699042263,-150.0,0.00015859,2]
[323129233,1713699042273,-150.0,0.0001586,2]
[323129235,1713699042284,-150.0,0.00015863,2]
[323129237,1713699042294,-150.0,0.00015871,2]
[323129239,1713699042303,-150.0,0.00015877,2]
[323129241,1713699042312,-150.0,0.00015888,2]
[323129243,1713699042322,-150.0,0.00015888,2]
[323129247,1713699042498,-150.0,0.00015891,2]
[323129248,1713699042561,-150.0,0.00015892,2]
[323129249,1713699042571,-150.0,0.00015897,2]
[323129250,1713699042581,-150.0,0.00015908,2]
[323129251,1713699042591,-150.0,0.00015909,2]
[323129252,1713699042601,-150.0,0.00015925,2]
[323129253,1713699042611,-150.0,0.00015925,2]
[323129254,1713699042620,-150.0,0.00015947,2]
[323129255,1713699042631,-150.0,0.00015951,2]
[323129256,1713699042641,-5.77880619,0.00015953,2]
[323129257,1713699042651,-150.0,0.00015956,2]
[323129258,1713699042661,-150.0,0.00015956,2]
[323129259,1713699042670,-150.0,0.00015958,2]
[323129260,1713699042679,-150.0,0.0001596,2]
[323129261,1713699042690,-150.0,0.0001596,2]
[323129262,1713699042699,-300.0,0.0001596,2]
[323129263,1713699042708,-150.0,0.0001596,2]
[323129264,1713699042719,-150.0,0.00015961,2]
[323129265,1713699042728,-150.0,0.00015963,2]
[323129266,1713699042737,-150.0,0.00015964,2]
[323129267,1713699042747,-150.0,0.00015964,2]
[323129268,1713699042756,-150.0,0.00015965,2]
[323129269,1713699042765,-150.0,0.00015965,2]
[323129270,1713699042775,-150.0,0.00015965,2]
[323129272,1713699042785,-150.0,0.00015967,2]
[323129274,1713699042794,-150.0,0.00015967,2]
[323129275,1713699042802,-150.0,0.00015968,2]
[323129277,1713699042812,-150.0,0.00015969,2]
[323129279,1713699042822,-150.0,0.00015969,2]
[323129280,1713699042831,-150.0,0.00015971,2]
[323129282,1713699042840,-150.0,0.00015973,2]
[323129284,1713699042849,-150.0,0.00015975,2]
[323129285,1713699042858,-150.0,0.00015975,2]
[323129287,1713699042867,-150.0,0.00015976,2]
[323129288,1713699042877,-150.0,0.00015976,2]
[323129290,1713699042886,-150.0,0.00015977,2]
[323129292,1713699042896,-150.0,0.00015981,2]
[323129294,1713699042905,-150.0,0.00015984,2]
[323129296,1713699042914,-300.0,0.00015985,2]
[323129297,1713699042923,-14930.9620141,0.00015985,2]
[323129299,1713699042933,-30484.73277429,0.00015985,2]
[323129309,1713699043012,-150.0,0.00015851,2]
[323129310,1713699043022,-150.0,0.00015881,2]
[323129311,1713699043031,-6288.48073,0.00015985,2]
[323129313,1713699043042,-5132.03954734,0.00015985,2]
[323129314,1713699043065,-9538.16091558,0.00015985,2]
[323129315,1713699043137,-150.0,0.00015737,2]
[323129316,1713699043147,-150.0,0.00015948,2]
[323129317,1713699043156,-12192.51817066,0.00015985,2]
[323129318,1713699043223,-150.0,0.00015719,2]
[323129319,1713699043232,-105.471,0.00015767,2]
[323129322,1713699043755,-150.0,0.00015703,2]
[323129323,1713699043765,-150.0,0.00015704,2]
[323129324,1713699043775,-150.0,0.00015711,2]
[323129325,1713699043785,-150.0,0.00015712,2]
[323129326,1713699043794,-150.0,0.00015713,2]
[323129327,1713699043804,-150.0,0.00015718,2]
[323129328,1713699043813,-150.0,0.00015727,2]
[323129329,1713699043823,-150.0,0.00015744,2]
[323129330,1713699043833,-150.0,0.00015752,2]
[323129331,1713699043843,-150.0,0.00015765,2]
[323129332,1713699043853,-44.529,0.00015767,2]
[323129333,1713699043863,-150.0,0.00015811,2]
[323129334,1713699043872,-150.0,0.00015817,2]
[323129335,1713699043882,-150.0,0.00015819,2]
[323129336,1713699043892,-150.0,0.00015828,2]
[323129337,1713699043901,-150.0,0.00015839,2]
[323129338,1713699043910,-150.0,0.00015843,2]
[323129339,1713699043919,-150.0,0.00015844,2]
[323129340,1713699043928,-150.0,0.00015849,2]
[323129341,1713699043938,-150.0,0.00015851,2]
[323129342,1713699043947,-150.0,0.00015855,2]
[323129343,1713699043956,-150.0,0.00015855,2]
[323129344,1713699043966,-150.0,0.00015866,2]
[323129345,1713699043975,-112.19032069,0.00015866,2]
[323129346,1713699043995,-150.0,0.0001577,2]
[323129347,1713699044005,-37.80967931,0.00015866,2]
[323129348,1713699044014,-150.0,0.00015866,2]
[323129349,1713699044024,-150.0,0.00015869,2]
[323129350,1713699044033,-150.0,0.00015891,2]
[323129351,1713699044042,-150.0,0.00015892,2]
[323129352,1713699044052,-170.15753105,0.00015896,2]
[323129353,1713699044061,-150.0,0.00015901,2]
[323129354,1713699044070,-150.0,0.00015904,2]
[323129355,1713699044079,-150.0,0.00015905,2]
[323129356,1713699044088,-150.0,0.00015909,2]
[323129357,1713699044098,-150.0,0.00015916,2]
[323129358,1713699044108,-150.0,0.00015929,2]
[323129359,1713699044117,-150.0,0.00015931,2]
[323129360,1713699044127,-150.0,0.00015932,2]
[323129361,1713699044137,-150.0,0.00015932,2]
[323129362,1713699044146,-150.0,0.00015933,2]
[323129363,1713699044155,-150.0,0.00015935,2]
[323129364,1713699044165,-150.0,0.00015941,2]
[323129365,1713699044174,-150.0,0.00015946,2]
[323129366,1713699044183,-150.0,0.00015952,2]
[323129367,1713699044192,-150.0,0.00015963,2]
[323129368,1713699044201,-150.0,0.00015974,2]
[323129369,1713699044212,-9189.07740957,0.00015985,2]
[323129370,1713699044346,-150.0,0.00015743,2]
[323129371,1713699044355,-150.0,0.00015797,2]
[323129372,1713699044365,-934.78047771,0.00015985,2]
[323129373,1713699044389,-150.0,0.00015924,2]
[323129374,1713699044398,-3193.6,0.00015985,2]
[323129375,1713699044441,-150.0,0.00015806,2]
[323129376,1713699044450,-150.0,0.00015897,2]
[323129377,1713699044459,-150.0,0.00015921,2]
[323129378,1713699044470,-15633.57589095,0.00015985,2]
[323129379,1713699044480,-1160.24537597,0.00015985,2]
[323129380,1713699044491,-4434.04281103,0.00015985,2]
[323129381,1713699044500,-151.9,0.00015988,2]
[323129382,1713699044510,-162.24557716,0.00015994,2]
[323129383,1713699044519,-150.0,0.00015994,2]
[323129384,1713699044529,-536.95974406,0.00015995,2]
[323129385,1713699044539,-308.71082841,0.00015996,2]
[323129386,1713699044548,-1549.01997213,0.00015996,2]
[323129387,1713699044557,-3835.67931871,0.00015996,2]
[323129388,1713699044566,-20794.80835338,0.00015996,2]
[323129389,1713699044577,-1602.03505828,0.00015996,2]
[323129390,1713699044586,-155.38615794,0.00015996,2]
[323129391,1713699044596,-1566.17920671,0.00015996,2]
[323129392,1713699044606,-14038.75921842,0.00015996,2]
[323129393,1713699044615,-85713.43535033,0.00015996,2]
[323129394,1713699044624,-300.0,0.00015997,2]
[323129395,1713699044634,-207.15994535,0.00015997,2]
[323129396,1713699044643,-5429.25554783,0.00015997,2]
[323129397,1713699044652,-80963.45909187,0.00015998,2]
[323129408,1713699047137,-150.0,0.00015576,2]
[323129409,1713699047147,-150.0,0.00015585,2]
[323129410,1713699047157,-150.0,0.00015658,2]
[323129411,1713699047167,-150.0,0.00015749,2]
[323129412,1713699047176,-20.1960599,0.00015924,2]
[323129413,1713699047203,-150.0,0.00015661,2]
[323129414,1713699047212,-150.0,0.00015704,2]
[323129415,1713699047227,-129.8039401,0.00015924,2]
[323129416,1713699047236,-150.0,0.00015953,2]
[323129417,1713699047245,-246.26156111,0.00015984,2]
[323129418,1713699047305,-150.0,0.00015635,2]
[323129419,1713699047314,-243.32795474,0.00015984,2]
[323129420,1713699047323,-211.53123723,0.00015984,2]
[323129421,1713699047332,-613.41775548,0.00015998,2]
[323129422,1713699047343,-3264.2630295,0.00015998,2]
[323129423,1713699047354,-1649.32414159,0.00015998,2]
[323129424,1713699047370,-525008.78408779,0.00015998,2]
[323129425,1713699047418,-452.65232408,0.00015998,2]
[323129464,1713700232555,-164.47454881,0.00012786,2]
[323129466,1713700232565,-155.0,0.00012787,2]
[323129468,1713700232575,-269.61026919,0.00012787,2]
[323129470,1713700232596,-4052.24381657,0.00012787,2]
[323129471,1713700232605,-1318.49635006,0.00012788,2]
[323129472,1713700232669,-1002.85820569,0.00012788,2]
[323129473,1713700232678,-549.70882601,0.00012798,2]
[323129474,1713700232688,-488.8,0.00012854,2]
[323129475,1713700232697,-150.0,0.00012877,2]
[323129476,1713700232706,-692.69076029,0.0001288,2]
[323129477,1713700232718,-214.47,0.00014752,2]
[323129478,1713700232727,-23900.0,0.00014755,2]
[323129479,1713700232737,-1365.14,0.00014767,2]
[323129480,1713700232746,-197.95,0.00014774,2]
[323129481,1713700232755,-689.01,0.00014803,2]
[323129482,1713700232765,-163.28,0.00014834,2]
[323129483,1713700232774,-310.99,0.00014847,2]
[323129484,1713700232783,-151.06,0.00014855,2]
[323129485,1713700232793,-750.0,0.00015,2]
[323129486,1713700232802,-3068.14352187,0.00015,2]
[323129487,1713700232811,-323.80854154,0.00015,2]
[323129488,1713700232821,-488.8,0.00015118,2]
[323129489,1713700232831,-150.0,0.000155,2]
[323129490,1713700232840,-1000.0,0.00015553,2]
[323129491,1713700232850,-900.0,0.00015593,2]
[323129492,1713700232859,-163.28,0.00015607,2]
[323129493,1713700232869,-150.0,0.00015725,2]
[323129494,1713700232878,-150.0,0.00015728,2]
[323129495,1713700232887,-150.0,0.00015734,2]
[323129496,1713700232897,-150.0,0.00015737,2]
[323129497,1713700232907,-150.0,0.00015739,2]
[323129498,1713700232919,-150.0,0.00015745,2]
[323129499,1713700232928,-150.0,0.00015746,2]
[323129500,1713700232938,-150.0,0.00015747,2]
[323129501,1713700232947,-150.0,0.00015759,2]
[323129502,1713700232958,-150.0,0.00015761,2]
[323129503,1713700232969,-150.0,0.00015764,2]
[323129504,1713700232979,-150.0,0.00015767,2]
[323129505,1713700232989,-150.0,0.00015779,2]
[323129507,1713700232999,-150.0,0.00015783,2]
[323129509,1713700233009,-150.0,0.00015789,2]
[323129511,1713700233019,-150.0,0.00015792,2]
[323129513,1713700233028,-900.0,0.00015793,2]
[323129515,1713700233037,-150.0,0.00015797,2]
[323129516,1713700233047,-1000.0,0.000158,2]
[323129517,1713700233056,-150.0,0.00015809,2]
[323129518,1713700233066,-150.0,0.00015816,2]
[323129519,1713700233075,-150.0,0.00015816,2]
[323129520,1713700233084,-150.0,0.00015818,2]
[323129521,1713700233094,-150.0,0.00015818,2]
[323129522,1713700233103,-150.0,0.00015819,2]
[323129523,1713700233113,-150.0,0.0001582,2]
[323129524,1713700233122,-150.0,0.00015825,2]
[323129525,1713700233132,-150.0,0.00015825,2]
[323129526,1713700233141,-150.0,0.00015831,2]
[323129527,1713700233151,-150.0,0.00015835,2]
[323129528,1713700233160,-158.53774905,0.00015838,2]
[323129529,1713700233170,-150.0,0.00015838,2]
[323129530,1713700233180,-150.0,0.00015839,2]
[323129531,1713700233189,-505.8801408,0.0001584,2]
[323129533,1713700233199,-150.0,0.00015856,2]
[323129535,1713700233208,-150.0,0.00015858,2]
[323129537,1713700233219,-150.0,0.00015861,2]
[323129540,1713700233228,-150.0,0.00015864,2]
[323129542,1713700233238,-500.0,0.00015869,2]
[323129544,1713700233247,-200.0,0.0001587,2]
[323129545,1713700233256,-1000.0,0.0001587,2]
[323129547,1713700233265,-500.0,0.0001587,2]
[323129549,1713700233275,-150.0,0.00015873,2]
[323129550,1713700233284,-150.0,0.00015873,2]
[323129551,1713700233293,-150.0,0.00015874,2]
[323129552,1713700233302,-150.0,0.00015875,2]
[323129553,1713700233311,-150.0,0.00015879,2]
[323129554,1713700233322,-150.0,0.0001588,2]
[323129555,1713700233331,-150.0,0.00015881,2]
[323129556,1713700233341,-150.0,0.00015884,2]
[323129557,1713700233350,-150.0,0.00015885,2]
[323129558,1713700233359,-150.0,0.00015885,2]
[323129559,1713700233369,-163.957661,0.0001589,2]
[323129560,1713700233378,-150.0,0.00015895,2]
[323129561,1713700233387,-2934.16791471,0.00015896,2]
[323129562,1713700233396,-482.0,0.000159,2]
[323129563,1713700233405,-200.0,0.000159,5]
[323129564,1713700233414,-150.0,0.00015906,2]
[323129565,1713700233425,-150.0,0.00015908,2]
[323129566,1713700233434,-150.0,0.0001591,2]
[323129567,1713700233444,-150.0,0.00015914,2]
[323129568,1713700233453,-150.0,0.00015929,2]
[323129569,1713700233465,-150.0,0.00015936,2]
[323129570,1713700233475,-150.0,0.00015936,2]
[323129571,1713700233485,-150.0,0.00015945,2]
[323129572,1713700233494,-150.0,0.00015948,2]
[323129573,1713700233503,-150.0,0.00015952,2]
[323129574,1713700233513,-150.0,0.00015953,2]
[323129575,1713700233522,-150.0,0.00015957,2]
[323129576,1713700233531,-150.0,0.00015958,2]
[323129577,1713700233540,-972.45,0.00015959,2]
[323129578,1713700233549,-2295.0,0.00015959,2]
[323129579,1713700233558,-463.139,0.00015959,2]
[323129580,1713700233567,-1137.097,0.00015959,2]
[323129581,1713700233576,-413.70619937,0.00015959,2]
[323129582,1713700233595,-127.29380063,0.00015959,2]
[323129583,1713700233604,-1267.302,0.00015959,2]
[323129584,1713700233613,-807.0,0.00015959,2]
[323129585,1713700233622,-399.0,0.00015959,2]
[323129586,1713700233631,-3108.166,0.00015959,2]
[323129587,1713700233641,-1598.207,0.00015959,2]
[323129588,1713700233650,-214.0,0.00015959,2]
[323129589,1713700233659,-443.0,0.00015959,2]
[323129590,1713700233669,-195.0,0.00015959,2]
[323129591,1713700233678,-1130.0,0.00015959,2]
[323129592,1713700233689,-2705.0,0.00015959,2]
[323129593,1713700233698,-749.025,0.00015959,2]
[323129594,1713700233707,-946.25,0.00015959,2]
[323129595,1713700233720,-150.282,0.00015959,2]
[323129596,1713700233967,-150.0,0.00015959,2]
[323129597,1713700233981,-1055.0,0.00015959,2]
[323129598,1713700233990,-150.0,0.0001596,2]
[323129599,1713700234002,-150.0,0.00015961,2]
[323129600,1713700234011,-150.0,0.00015963,2]
[323129601,1713700234020,-150.0,0.00015964,2]
[323129602,1713700234029,-150.0,0.00015972,2]
[323129603,1713700234038,-150.0,0.00015976,2]
[323129604,1713700234048,-150.0,0.00015976,2]
[323129605,1713700234057,-1676.72419936,0.0001598,4]
[323129606,1713700234069,-2245.43580064,0.0001598,4]
[323129607,1713700234078,-150.0,0.00015982,2]
[323129608,1713700234087,-468.62924973,0.00015983,2]
[323129609,1713700234097,-236.6335643,0.00015983,2]
[323129610,1713700234106,-150.0,0.00015983,2]
[323129611,1713700234116,-5543.7847875,0.00015983,2]
[323129612,1713700234125,-6718.94292751,0.00015984,2]
[323129613,1713700234136,-1153.90392012,0.00015984,2]
[323129614,1713700234154,-3256.1,0.00015984,2]
[323129615,1713700234165,-10111.23617097,0.00015984,2]
[323129616,1713700234187,-429.8742519,0.00015984,2]
[323129617,1713700234199,-13681.79108481,0.00015984,2]
[323129638,1713700238195,-158.53774906,0.00015838,2]
[323129640,1713700238204,-150.09,0.00015959,2]
[323129642,1713700238215,-1956.54830306,0.00015984,2]
[323129657,1713700238619,-12807.93850477,0.00015984,2]
[323129659,1713700238629,-11501.3200395,0.00015985,2]
[323129661,1713700238638,-4345.5504344,0.00015985,2]
[323129662,1713700238647,-71920.0220844,0.00015985,2]
[323129664,1713700238656,-19959.2629309,0.00015985,2]
[323129666,1713700238666,-150.0,0.00015989,2]
[323129668,1713700238675,-900.0,0.00015993,2]
[323129671,1713700238685,-194.57630931,0.00015996,2]
[323129673,1713700238694,-8428.03554109,0.00015996,2]
[323129809,1713700242512,-912.84765584,0.00015996,2]
[323129810,1713700242522,-332.76192314,0.00015996,2]
[323129811,1713700242533,-1790.3548498,0.00015996,2]
[323129812,1713700242542,-32662.17160184,0.00015996,2]
[323129813,1713700242552,-2176.78118277,0.00015996,2]
[323129814,1713700242561,-155.0,0.00015996,2]
[323129815,1713700242570,-343.17873024,0.00015996,2]
[323129816,1713700242581,-706.16360927,0.00015996,2]
[323129817,1713700242591,-200.2042692,0.00015996,2]
[323129818,1713700242601,-408.87759889,0.00015996,2]
[323129819,1713700242611,-155.0,0.00015996,2]
[323129820,1713700242621,-233.64869383,0.00015997,2]
[323129821,1713700242630,-7455.54278612,0.00015997,2]
[323129822,1713700242639,-128945.43910044,0.00015998,2]
[323129823,1713700242648,-1114.62051184,0.00015998,2]
[323129824,1713700242657,-399.17869127,0.00015998,2]
[323129825,1713700242666,-2126.66153,0.00015998,2]
[323129826,1713700242676,-155.0,0.00016,2]
[323129827,1713700242685,-2000.0,0.00016,2]
[323129828,1713700242694,-150.0,0.00016,2]
[323129829,1713700242703,-331.0,0.0001604,2]
[323129830,1713700242712,-150.115,0.00016083,2]
[323129831,1713700242723,-150.106,0.00016083,2]
[323129832,1713700242732,-1093.4,0.0001611,10]
[323129833,1713700242741,-3247.740548,0.00016174,2]
[323129834,1713700242750,-2934.1679147,0.00016182,2]
[323129835,1713700242758,-1385.89474676,0.00016189,2]
[323129836,1713700242768,-901.0,0.00016192,2]
[323129837,1713700242777,-900.0,0.00016193,2]
[323129838,1713700242786,-352.0,0.000162,2]
[323129839,1713700242795,-539.0,0.00016247,2]
[323129840,1713700242804,-164.96741634,0.00016293,2]
[323129841,1713700242814,-754.0,0.000163,2]
[323129842,1713700242823,-842.0,0.000163,2]
[323129843,1713700242833,-8975.97200508,0.00016338,2]
[323129844,1713700242843,-10000.0,0.00016338,2]
[323129845,1713700242852,-900.0,0.00016393,2]
[323129846,1713700242861,-1000.0,0.000164,2]
[323129847,1713700242870,-222.0,0.000164,2]
[323129848,1713700242879,-152.06,0.00016428,2]
[323129849,1713700242888,-500.0,0.00016438,2]
[323129850,1713700242897,-518.48152898,0.00016438,2]
[323129852,1713700242906,-500.0,0.00016438,2]
[323129853,1713700242915,-447.15642642,0.00016438,2]
[323129854,1713700242927,-500.0,0.00016438,2]
[323129855,1713700242936,-500.0,0.00016438,2]
[323129856,1713700242946,-500.0,0.00016438,2]
[323129857,1713700242956,-500.0,0.00016438,2]
[323129858,1713700242966,-500.0,0.00016438,2]
[323129859,1713700242978,-500.0,0.00016438,2]
[323129860,1713700242988,-846.21,0.00016438,2]
[323129861,1713700242997,-500.0,0.00016438,2]
[323129862,1713700243007,-500.0,0.00016438,2]
[323129863,1713700243016,-434.02270858,0.00016438,2]
[323129864,1713700243025,-250.0,0.00016438,2]
[323129865,1713700243034,-500.0,0.00016438,2]
[323129866,1713700243044,-500.0,0.00016438,2]
[323129868,1713700243053,-500.0,0.00016438,2]
[323129870,1713700243062,-492.48447392,0.00016438,2]
[323129873,1713700243075,-7.51552608,0.00016438,2]
[323129876,1713700243085,-500.0,0.00016438,2]
[323129878,1713700243095,-500.0,0.00016438,2]
[323129879,1713700243106,-500.0,0.00016438,2]
[323129880,1713700243115,-500.0,0.00016438,2]
[323129881,1713700243124,-500.0,0.00016438,2]
[323129882,1713700243134,-500.0,0.00016438,2]
[323129883,1713700243143,-514.38,0.00016438,2]
[323129884,1713700243152,-500.0,0.00016438,2]
[323129885,1713700243161,-500.0,0.00016438,2]
[323129886,1713700243171,-717.54,0.00016438,2]
[323129887,1713700243180,-500.0,0.00016438,2]
[323129888,1713700243190,-623.51111038,0.00016438,2]
[323129890,1713700243199,-714.08,0.00016438,2]
[323129892,1713700243209,-612.67,0.00016438,2]
[323129894,1713700243220,-500.0,0.00016438,2]
[323129896,1713700243229,-168.63095368,0.00016438,2]
[323129898,1713700243238,-318.85592767,0.00016438,2]
[323129900,1713700243247,-500.0,0.00016438,2]
[323129902,1713700243256,-500.0,0.00016438,2]
[323129904,1713700243265,-535.35,0.00016438,2]
[323129906,1713700243274,-500.0,0.00016438,2]
[323129908,1713700243283,-500.0,0.00016438,2]
[323129910,1713700243292,-500.0,0.00016438,2]
[323129912,1713700243301,-500.0,0.00016438,2]
[323129914,1713700243310,-500.0,0.00016438,2]
[323129916,1713700243319,-363.15859822,0.00016438,2]
[323129918,1713700243328,-500.0,0.00016438,2]
[323129920,1713700243337,-500.0,0.00016438,2]
[323129922,1713700243346,-500.0,0.00016438,2]
[323129924,1713700243355,-556.77,0.00016438,2]
[323129926,1713700243364,-500.0,0.00016438,2]
[323129928,1713700243373,-500.0,0.00016438,2]
[323129930,1713700243381,-500.0,0.00016438,2]
[323129932,1713700243390,-575.08,0.00016438,2]
[323129934,1713700243399,-500.0,0.00016438,2]
[323129936,1713700243409,-500.0,0.00016438,2]
[323129937,1713700243419,-500.0,0.00016438,2]
[323129938,1713700243429,-500.0,0.00016438,2]
[323129939,1713700243438,-503.55623564,0.00016438,2]
[323129940,1713700243448,-589.5,0.00016438,2]
[323129941,1713700243458,-528.79,0.00016438,2]
[323129942,1713700243470,-625.46,0.00016438,2]
[323129943,1713700243479,-500.0,0.00016438,2]
[323129944,1713700243488,-500.0,0.00016438,2]
[323129945,1713700243498,-500.0,0.00016438,2]
[323129946,1713700243509,-500.0,0.00016438,2]
[323129947,1713700243519,-653.42,0.00016438,2]
[323129948,1713700243528,-500.0,0.00016438,2]
[323129949,1713700243539,-500.0,0.00016438,2]
[323129950,1713700243549,-737.89,0.00016438,2]
[323129951,1713700243558,-500.0,0.00016438,2]
[323129952,1713700243569,-500.0,0.00016438,2]
[323129953,1713700243578,-500.0,0.00016438,2]
[323129954,1713700243587,-156.61,0.00016438,2]
[323129955,1713700243596,-500.0,0.00016438,2]
[323129956,1713700243605,-500.0,0.00016438,2]
[323129957,1713700243614,-500.0,0.00016438,2]
[323129958,1713700243623,-500.0,0.00016438,2]
[323129959,1713700243632,-500.0,0.00016438,2]
[323129960,1713700243641,-511.40916581,0.00016438,2]
[323129961,1713700243650,-500.0,0.00016438,2]
[323129962,1713700243658,-500.38796274,0.00016438,2]
[323129963,1713700243667,-754.07,0.00016438,2]
[323129964,1713700243677,-627.75,0.00016438,2]